[Event "3rd Sharjah Challengers 2023"]
[Site "Sharjah"]
[Date "2023.05.22"]
[Round "6.1"]
[White "Sivuk, Vitaly"]
[Black "Fawzy, Adham"]
[Result "0-1"]
[ECO "A30"]
[WhiteElo "2489"]
[BlackElo "2495"]
[Annotator "TA"]
[PlyCount "76"]
[EventDate "2023.05.16"]
[EventType "swiss"]
[EventCountry "UAE"]
[SourceTitle "playchess.com"]
[Source "ChessBase"]
[SourceQuality "1"]
[TimeControl "5400+30"]

{[%evp 9,76,33,25,16,29,10,30,17,36,5,20,40,21,12,16,26,51,59,60,74,53,80,83,79,108,96,134,112,146,146,119,98,77,78,170,-64,-58,-55,-60,-68,-57,-64,0,0,0,-13,16,24,31,-34,-27,-280,-279,-287,-291,-436,-439,-506,-467,-506,-497,-480,-480,-589,-275,-29991,-514,-29992,-29993]} 1. Nf3 {[%emt 1:31:00]} c5 {[%emt 1:31:00]} 2. c4 {[%emt 0:00:30]} Nc6 {[%emt 0:00:30]} 3. d4 {[%emt 0:00:30]} cxd4 {[%emt 0:00:30]} 4. Nxd4 {[%emt 0:00:30]} e5 {[%emt 0:00:30]} 5. Nb5 {[%emt 0:00:30]} d6 {[%emt 0:00:30]} 6. g3 {[%emt 0:00:30] A30: Symmetrical English: Double Fianchetto and Hedgehog.} Be6 {[%emt 0:00:30]} 7. b3 {[%emt 0:00:30]} Nf6 {[%emt 0:00:30]} 8. Bg2 {[%emt 0:00:30] White has an edge.} Rc8 {[%emt 0:00:30] [#]} 9. Bg5 $146 {[%emt 0:00:30]} ({Predecessor:} 9. N5c3 Be7 10. O-O O-O 11. Bb2 a6 12. Nd5 b5 13. Na3 bxc4 14. Nxc4 Nxd5 15. Bxd5 {½-½ Tyulenko,Y (2409)-Fister,B (2347) Danube tt4 email 2012 [6]}) 9... d5 {[%emt 0:00:30]} 10. Bxf6 {[%emt 0:00:30]} Qa5+ {[%emt 0:00:30]} 11. N1c3 {[%emt 0:00:30][%cal Oc4d5]} dxc4 {[%emt 0:00:30] [#]} 12. Bxg7 {[%emt 0:00:30]} Bxg7 {[%emt 0:00:30] [#]} (12... Rd8 13. Bxh8) 13. b4 $1 {[%emt 0:00:30]} Nxb4 {[%emt 0:00:30]} (13... Qxb4 14. Rb1) 14. Nd6+ {[%emt 0:00:30] Excellent horsemanship.} Ke7 {[%emt 0:00:30] aiming for ...Rcd8.} 15. Nxc8+ {[%emt 0:00:30]} (15. Nxb7 Nd3+ $17) 15... Rxc8 {[%emt 0:00:30]} 16. O-O {[%emt 0:00:30]} Nc6 {[%emt 0:00:30]} 17. Rc1 {[%emt 0:00:30]} Rd8 {[%emt 0:00:30]} 18. Qc2 {[%emt 0:00:30] Hoping for Bxc6.} e4 {[%emt 0:00:30]} 19. Bxe4 {[%emt 0:00:30]} Nb4 {[%emt 0:00:30]} 20. Qb2 {[%emt 0:00:30] Strongly threatening Rfd1.} b6 {[%emt 0:00:30][%cal Ob4a2]} 21. a4 {[%emt 0:00:30]} Qc5 {[%emt 0:00:30]} (21... f5 $16) 22. Rfd1 $2 {[%emt 0:00:30]} (22. Rcd1 $18) 22... Bxc3 $1 $15 {[%emt 0:00:30][%mdl 64] Remove Defender. Active counter play!} 23. Qxc3 {[%emt 0:00:30]} Na2 {[%emt 0:00:30][%csl LRc1,LRc3] Dancing on a razor blade.} 24. Qg7 {[%emt 0:00:30] Rxd8 would be deadly.} Nxc1 {[%emt 0:00:30]} 25. Rxc1 {[%emt 0:00:30]} Qd4 {[%emt 0:00:30]} ({Black should play} 25... h5 $15) 26. Qg5+ $11 {[%emt 0:00:30]} (26. Qxh7 $2 Rh8 27. e3 Qf6 $19) 26... Qf6 {[%emt 0:00:30]} 27. Qb5 {[%emt 0:00:30]} Rc8 {[%emt 0:00:30]} 28. Qb4+ {[%emt 0:00:30]} (28. Bxh7 Qh6 29. Qb1 (29. Qb4+ $2 Rc5 $19) 29... f5 30. Bxf5 (30. Qb4+ $2 Kf7 $19) 30... Bxf5 31. Qb4+ Qd6 32. Rxc4 a5 33. Qxd6+ Kxd6 $17) 28... Ke8 $1 {[%emt 0:00:30]} 29. a5 {[%emt 0:00:30]} (29. Bxh7 Qh6 30. Qb5+ Ke7 $17) (29. Rd1 $14) 29... Qg5 {[%emt 0:00:30][%csl LRa5,LRc1]} 30. Ra1 {[%emt 0:00:30][%mdl 8192] This move loses the game for White.} (30. Qc3 $11 {and White has nothing to worry.}) 30... Qe5 $1 $19 {[%emt 0:00:30][%csl LRa1,LRe4]} 31. Qb1 {[%emt 0:00:30]} b5 {[%emt 0:00:30][%cal Ob5b4] ...b4! is the strong threat.} ({Weaker is} 31... bxa5 32. Bxh7 Rd8 33. Qa2 $15) 32. Ra3 {[%emt 0:00:30] Wards off b4} (32. Bc2 $142) 32... c3 {[%emt 0:00:30]} 33. a6 {[%emt 0:00:30] [#]} b4 $1 {[%emt 0:00:30][%mdl 576] Decoy} 34. Qxb4 {[%emt 0:00:30] Threatens to win with Ra5.} Rc4 {[%emt 0:00:30]} 35. Qb7 {[%emt 0:00:30]} Qxe4 {[%emt 0:00:30]} (35... Rxe4 $2 {perishes.} 36. Rxc3 Rxe2 37. Re3 Rxe3 38. Qa8+ Ke7 39. Qxa7+ Kf8 40. Qxe3 Qa1+ 41. Kg2 Qxa6 42. Qc5+ Ke8 43. h4 $19) 36. Rxc3 {[%emt 0:00:30]} Rb4 {[%emt 0:00:30]} (36... Bd5 $142 {[%csl Gd5][%cal Re4h1]} 37. Qb8+ Ke7 38. Qxa7+ Kf8) 37. Qc7 $2 {[%emt 0:00:30]} (37. Qxe4 $19 Rxe4 38. Rc7) 37... Rb1+ {[%emt 0:00:30]} ({Less strong is} 37... Qxe2 38. Qc6+ Kf8 39. Qd6+ Kg8 40. Qxb4 $16) 38. Rc1 {[%emt 0:00:30]} Bh3 {[%emt 0:00:30] Artfully played by Fawzy.   Weighted Error Value: White=0.49/Black=0.20 (precise)} 0-1

[Event "3rd Sharjah Challengers 2023"]
[Site "Sharjah"]
[Date "2023.05.22"]
[Round "6.2"]
[White "Nigmatov, Ortik"]
[Black "Ohanyan, Emin"]
[Result "1/2-1/2"]
[ECO "B33"]
[WhiteElo "2438"]
[BlackElo "2444"]
[Annotator "TA"]
[PlyCount "62"]
[EventDate "2023.05.16"]
[EventType "swiss"]
[EventCountry "UAE"]
[SourceTitle "playchess.com"]
[Source "ChessBase"]
[SourceQuality "1"]
[TimeControl "5400+30"]

{[%evp 26,62,5,13,12,4,15,8,16,0,22,25,30,29,42,36,36,33,50,0,0,-16,-20,-28,-20,-15,-16,-24,0,0,0,0,0,0,0,0,0,0,0]} 1. e4 {[%emt 0:00:23]} c5 {[%emt 0:00:06]} 2. Nf3 {[%emt 0:00:10]} e6 {[%emt 0:00:03]} 3. d4 {[%emt 0:00:09]} cxd4 {[%emt 0:00:04]} 4. Nxd4 {[%emt 0:00:07]} Nf6 {[%emt 0:00:02]} 5. Nc3 {[%emt 0:00:38]} Nc6 {[%emt 0:00:16]} 6. Ndb5 {[%emt 0:01:11]} d6 {[%emt 0:00:14]} 7. Bf4 {[%emt 0:01:26]} e5 {[%emt 0:00:09]} 8. Bg5 {[%emt 0:00:05]} a6 {[%emt 0:00:03]} 9. Na3 {[%emt 0:00:05]} b5 {[%emt 0:00:02]} 10. Nd5 {[%emt 0:00:11]} Be7 {[%emt 0:00:03]} 11. Bxf6 {[%emt 0:00:22]} Bxf6 {[%emt 0:00:04]} 12. c3 {[%emt 0:01:34]} Bg5 {[%emt 0:00:46]} 13. Nc2 {[%emt 0:01:41]} Rb8 {[%emt 0:00:25]} 14. a4 {[%emt 0:03:29] 14.h4 is the recent fashion.} bxa4 {[%emt 0:00:12] B33: Sicilian: Pelikan and Sveshnikov Variations.} 15. Ncb4 {[%emt 0:00:08]} Nxb4 {[%emt 0:00:05]} 16. cxb4 {[%emt 0:00:08]} O-O {[%emt 0:00:17]} 17. h4 {[%emt 0:03:45]} Bh6 {[%emt 0:02:56]} (17... Be7 $5 {[%cal Rf7f5]}) 18. Rxa4 {[%emt 0:00:17]} a5 {[%emt 0:06:30]} 19. b5 {[%emt 0:00:21]} ({Stronger than} 19. Rxa5 Rxb4 20. Ra8 Rxe4+ 21. Be2 Rd4 $19) (19. bxa5 Rxb2 20. Qa1 Rc2 $17) 19... Bd7 {[%emt 0:00:33]} 20. Nc3 {[%emt 0:00:05]} d5 {[%emt 0:00:15][%mdl 64] [#] Deflection} 21. exd5 {[%emt 0:00:06]} f5 {[%emt 0:00:39] [#]} 22. d6 $146 {[%emt 0:10:13]} (22. Be2 $14) ({Predecessor:} 22. g3 Kh8 23. Be2 f4 24. g4 f3 25. Bxf3 Bc1 26. Qxc1 Rxf3 27. Re4 Qb6 28. Qd2 Rbf8 29. Rh2 Bxb5 {½-½ Miron,L (2498)-Nisipeanu,L (2633) ROM-chT Oradea 2022 (7.26)}) 22... Kh8 {[%emt 0:08:43]} 23. Bc4 {[%emt 0:16:42]} (23. Be2 $5) 23... Rf6 {[%emt 0:20:37]} 24. O-O {[%emt 0:16:10]} e4 {[%emt 0:03:32]} 25. g3 {[%emt 0:04:53] [#] Inhibits Bf4.} Bf4 $1 {[%emt 0:13:00]} 26. Be2 $1 {[%emt 0:08:13][%cal Bc4e2,Be2h5,Bh5g6][%mdl 32]} (26. gxf4 $2 {gets mated.} Rg6+) ({But not} 26. Nd5 Rxd6 27. Nxf4 Rxd1 28. Rxd1 Qc8 $17) 26... Rxd6 {[%emt 0:07:28]} 27. Rd4 {[%emt 0:00:58] The position is equal.} Rbb6 {[%emt 0:01:10]} 28. Rxd6 {[%emt 0:16:02]} Rxd6 {[%emt 0:00:56]} 29. Qa4 {[%emt 0:01:10]} Rg6 {[%emt 0:22:01]} 30. Bh5 {[%emt 0:03:28]} Bxg3 {[%emt 0:07:27][%cal Od8h4] ( -> ...Qxh4!)} 31. Bxg6 {[%emt 0:01:21]} Qxh4 {[%emt 0:00:55] Weighted Error Value: White=0.05 (flawless) /Black=0.04 (flawless)} 1/2-1/2

[Event "3rd Sharjah Challengers 2023"]
[Site "Sharjah"]
[Date "2023.05.22"]
[Round "6.3"]
[White "Hesham, Abdelrahman"]
[Black "Sibashvili, Giorgi"]
[Result "0-1"]
[ECO "D41"]
[WhiteElo "2409"]
[BlackElo "2408"]
[Annotator "TA"]
[PlyCount "110"]
[EventDate "2023.05.16"]
[EventType "swiss"]
[EventCountry "UAE"]
[SourceTitle "playchess.com"]
[Source "ChessBase"]
[SourceQuality "1"]
[TimeControl "5400+30"]

{[%evp 26,110,17,15,7,0,0,0,0,0,0,0,0,0,0,0,0,-39,0,-10,-33,-10,0,0,0,-93,-84,-102,-91,-100,-93,-96,-31,-34,-38,-107,-114,-108,-52,-60,-60,-50,-42,-83,-83,-97,-97,-105,-105,-108,-113,-125,-116,-197,-102,-368,-400,-393,-171,-172,-203,-772,-770,-691,-662,-750,-748,-725,-712,-716,-649,-965,-931,-1103,-1086,-29980,-29981,-29983,-29984,-29984,-29985,-29985,-29986,-29987,-29988,-29988,-29989]} 1. d4 {[%emt 0:00:02]} Nf6 {[%emt 0:03:44]} 2. c4 {[%emt 0:00:07]} e6 {[%emt 0:01:39]} 3. Nc3 {[%emt 0:00:07]} d5 {[%emt 0:00:14]} 4. cxd5 {[%emt 0:01:14]} Nxd5 {[%emt 0:00:31]} 5. e4 {[%emt 0:00:44]} Nxc3 {[%emt 0:00:06]} 6. bxc3 {[%emt 0:00:03]} c5 {[%emt 0:00:05]} 7. Nf3 {[%emt 0:12:52]} cxd4 {[%emt 0:00:09]} 8. cxd4 {[%emt 0:00:02]} Bb4+ {[%emt 0:00:07]} 9. Bd2 {[%emt 0:00:02]} Bxd2+ {[%emt 0:00:08]} 10. Qxd2 {[%emt 0:00:04]} O-O {[%emt 0:00:09]} 11. Bc4 {[%emt 0:00:11]} Nd7 {[%emt 0:00:07]} 12. O-O {[%emt 0:00:06]} b6 {[%emt 0:00:05]} 13. Rfe1 {[%emt 0:00:06]} Bb7 {[%emt 0:00:11]} 14. Rad1 {[%emt 0:00:07]} Rc8 {[%emt 0:00:16] D41: Queen's Gambit Declined: Semi-Tarrasch with 5 cxd5.} 15. Bb3 {[%emt 0:00:04]} Re8 {[%emt 0:00:17]} 16. h3 {[%emt 0:03:23]} Qf6 {[%emt 0:02:41] The position is equal.} 17. Re3 {[%emt 0:04:14]} Qf4 {[%emt 0:02:32]} 18. Qe1 {[%emt 0:05:56] [#]} Nf6 $146 {[%emt 0:11:39]} ({Predecessor:} 18... h6 19. Nd2 Red8 20. Rf3 Qh4 21. Qe3 Rc7 22. Rg3 Nf6 23. Nf3 Qxe4 24. Qxh6 Ne8 {1-0 Mastrovasilis,A (2518)-Yurtseven,M (2327) EU-ch 23rd Vrnjacka Banja 2023 (7)}) 19. d5 {[%emt 0:14:12]} exd5 {[%emt 0:01:48]} 20. e5 {[%emt 0:00:13]} Ne4 {[%emt 0:01:13]} 21. Nd4 {[%emt 0:01:20]} h6 {[%emt 0:15:42]} (21... Qxe5 22. f3 $14) (21... g6 $5 {[%cal Re8e5]}) 22. f3 {[%emt 0:26:41]} Ng3 {[%emt 0:01:10]} 23. e6 {[%emt 0:03:20]} Nf5 {[%emt 0:21:04]} 24. Nxf5 {[%emt 0:01:17][%mdl 64] Remove Defender} Qxf5 {[%emt 0:00:05]} 25. e7 {[%emt 0:02:48]} (25. Re5 $11 {remains equal.} Qf6 26. exf7+ (26. Bxd5 Bxd5 27. Rdxd5 Rxe6 $17) 26... Kxf7 27. Bxd5+ Bxd5 28. Rdxd5) 25... Rc5 {[%emt 0:16:09]} 26. Ba4 {[%emt 0:18:43]} Bc6 {[%emt 0:00:29]} 27. Bxc6 {[%emt 0:02:45]} Rxc6 {[%emt 0:00:04]} 28. Re5 {[%emt 0:00:08]} Qf6 {[%emt 0:00:44]} (28... Qc8 $17) 29. Rdxd5 $15 {[%emt 0:00:33][%cal Od5d8]} (29. Rexd5 Rxe7 30. Qd2 Qh4 $17) 29... Re6 {[%emt 0:00:27]} 30. Rd8 {[%emt 0:00:55]} Qxe7 $1 $17 {[%emt 0:00:52]} (30... Qxe5 $6 31. Qxe5 (31. Rxe8+ Kh7 $11) 31... Rxe5 32. Rxe8+ Kh7 33. f4 $11) 31. Rxe6 {[%emt 0:00:14]} fxe6 {[%emt 0:00:14]} (31... Qc5+ $17 32. Kf1 Rxd8 33. Re8+ Rxe8 34. Qxe8+ Qf8) 32. Rxe8+ $15 {[%emt 0:00:55]} Qxe8 $17 {[%emt 0:00:02][%mdl 4096] Endgame KQ-KQ} 33. Qe5 {[%emt 0:00:17]} Qd7 {[%emt 0:01:21]} 34. h4 {[%emt 0:02:18]} b5 {[%emt 0:01:18]} 35. Kh2 {[%emt 0:01:01] [#]} a5 $1 {[%emt 0:00:35]} 36. Qb8+ {[%emt 0:00:41]} Kh7 {[%emt 0:00:40]} 37. Qa8 {[%emt 0:00:42]} a4 {[%emt 0:00:54] ...Qd6+ would be deadly.} 38. Qe4+ {[%emt 0:00:10]} Kg8 {[%emt 0:00:07] Strongly threatening ...Qd5.} 39. a3 {[%emt 0:00:26] [#]} (39. Qa8+ $17 Kf7 40. Qa5) 39... Qd6+ {[%emt 0:02:36]} (39... Qd5 $1 $19 {[%cal Rd5e4] Hoping for ...Qxe4.} 40. Qe3 Qb3) 40. Kh1 $2 {[%emt 0:00:50][%mdl 8192] This move loses the game for White.} (40. Kh3 $17 {was forced.}) 40... Qd5 $19 {[%emt 0:00:34] ...Qxe4 is the strong threat.} ({Not} 40... Qxa3 41. Qxe6+ Kf8 42. Qf5+ Ke7 43. Qe5+ Kf8 44. Qf5+ Kg8 45. Qe6+ Kf8 46. Qf5+ $15) 41. Qg6 {[%emt 0:00:23]} Qd1+ {[%emt 0:01:48]} (41... Qc6 $142 {[%cal Ob5b4] Threatens to win with ...b4!} 42. Qd3 Qc4) 42. Kh2 {[%emt 0:00:01]} Qd6+ {[%emt 0:00:07]} 43. Kh1 $2 {[%emt 0:00:30]} (43. Kh3 Kf8 44. Qb1) 43... Kf8 {[%emt 0:00:14]} ({Weaker is} 43... Qxa3 44. Qxe6+ Kf8 45. Qf5+ Ke7 46. Qe5+ Kd7 47. Qxb5+ Kd6 48. Qb6+ Kd5 49. Qb7+ Kc4 50. Qe4+ Kc3 51. Qe5+ Kd3 52. Qd5+ Ke3 53. Qe4+ Kf2 54. Qc2+ Ke1 55. Qe4+ Kf1 56. Qb1+ Kf2 57. Qc2+ Ke3 58. Qe4+ Kf2 59. Qc2+ $11) 44. Qe4 {[%emt 0:00:53]} Qxa3 {[%emt 0:01:07]} 45. Qxe6 {[%emt 0:00:33]} Qc1+ {[%emt 0:01:19]} 46. Kh2 {[%emt 0:00:03]} Qc5 {[%emt 0:00:54] And now ...b4 would win.} 47. f4 {[%emt 0:00:43]} a3 {[%emt 0:02:02]} 48. f5 {[%emt 0:00:10]} Qe7 {[%emt 0:00:45] ( -> ...Qxe6)} 49. Qc8+ {[%emt 0:01:14]} Kf7 {[%emt 0:00:05][%cal Oa3a2]} 50. g3 {[%emt 0:00:22]} a2 {[%emt 0:02:31] Black mates.} 51. Qa6 {[%emt 0:00:07]} Qe2+ {[%emt 0:00:50]} 52. Kh3 {[%emt 0:00:01]} Qf1+ {[%emt 0:00:57]} 53. Kh2 {[%emt 0:00:48]} Qf2+ {[%emt 0:00:44]} ({And not} 53... a1=B 54. Qe6+ Kf8 55. Qc8+ Kf7 56. Qe6+ Kf8 57. Qc8+ Kf7 58. Qe6+ $11) 54. Kh1 {[%emt 0:00:01]} Qe1+ {[%emt 0:01:19]} 55. Kh2 {[%emt 0:00:44]} a1=Q {[%emt 0:00:20] Weighted Error Value: White=0.61/Black=0.15 (very precise)} 0-1

[Event "3rd Sharjah Challengers 2023"]
[Site "Sharjah"]
[Date "2023.05.22"]
[Round "6.4"]
[White "Rios, Cristhian Camilo"]
[Black "Mkrtchyan, Mariam"]
[Result "1-0"]
[ECO "E02"]
[WhiteElo "2469"]
[BlackElo "2360"]
[Annotator "TA"]
[PlyCount "129"]
[EventDate "2023.05.16"]
[EventType "swiss"]
[EventCountry "UAE"]
[SourceTitle "playchess.com"]
[Source "ChessBase"]
[SourceQuality "1"]
[TimeControl "5400+30"]

{[%evp 21,129,-14,-2,-15,-10,-14,19,25,20,6,37,39,22,18,49,56,72,60,58,66,61,59,50,62,54,41,54,41,52,50,64,36,67,42,127,131,129,126,124,115,116,64,110,104,126,118,128,135,127,126,126,115,127,134,152,125,174,173,172,168,167,164,160,145,147,147,133,133,133,133,198,204,248,241,250,250,250,250,384,371,348,331,317,295,358,276,481,470,585,541,725,696,1672,1600,29977,29978,29978,29979,29987,29988,29988,29989,29990,29991,29992,29993,29997,29998,29998,29999]} 1. d4 {[%emt 1:31:00]} Nf6 {[%emt 1:31:00]} 2. Nf3 {[%emt 0:00:30]} d5 {[%emt 0:00:30]} 3. c4 {[%emt 0:00:30]} e6 {[%emt 0:00:30]} 4. Nc3 {[%emt 0:00:30]} Nbd7 {[%emt 0:00:30]} 5. g3 {[%emt 0:00:30]} dxc4 {[%emt 0:00:30]} 6. Bg2 {[%emt 0:00:30]} Rb8 {[%emt 0:00:30]} 7. Qa4 {[%emt 0:00:30]} a6 {[%emt 0:00:30]} 8. Qxc4 {[%emt 0:00:30]} b5 {[%emt 0:00:30]} 9. Qd3 {[%emt 0:00:30]} Bb7 {[%emt 0:00:30]} 10. O-O {[%emt 0:00:30]} c5 {[%emt 0:00:30]} 11. Bf4 {[%emt 0:00:30]} Rc8 {[%emt 0:00:30]} 12. a3 {[%emt 0:00:30] E02: Open Catalan: 5 Qa4+.} cxd4 {[%emt 0:00:30]} 13. Qxd4 {[%emt 0:00:30] [#]} (13. Nxd4 $2 Bxg2 14. Kxg2 e5 $19) 13... Qb6 $146 {[%emt 0:00:30]} ({Predecessor:} 13... Bc5 14. Qd3 O-O 15. Rac1 Nb6 16. Ne5 Qe7 17. Ne4 Rfd8 18. Qb1 Nxe4 19. Bxe4 Bxe4 20. Qxe4 {½-½ Szabo,V (2395)-Hnatovsky,N (2308) LSS WC-2010-F-00003}) 14. Qxb6 {[%emt 0:00:30] The position is equal.} Nxb6 {[%emt 0:00:30][%cal Bd7b6,Bb6c4,Bc4a5,Ba5b3][%mdl 32]} 15. a4 {[%emt 0:00:30]} b4 {[%emt 0:00:30]} 16. a5 {[%emt 0:00:30]} Nc4 {[%emt 0:00:30]} 17. Na4 {[%emt 0:00:30]} Nxa5 {[%emt 0:00:30]} 18. Nb6 {[%emt 0:00:30][%csl LRa5,LRc8] Prevents Nd5} Rc5 {[%emt 0:00:30]} 19. Be3 {[%emt 0:00:30] White is more active.} Nb3 {[%emt 0:00:30]} 20. Bxc5 {[%emt 0:00:30]} Bxc5 21. Ra4 {[%emt 0:00:30]} O-O {[%emt 0:01:00]} 22. Nc4 {[%emt 0:00:30]} Bc6 $1 {[%emt 0:00:30]} 23. Ra2 {[%emt 0:00:30]} ({But not} 23. Rxa6 Bb5 24. Na5 Bxa6 $11) 23... Bb5 $1 {[%emt 0:00:30]} 24. Ncd2 {[%emt 0:00:30]} Nxd2 {[%emt 0:00:30]} 25. Nxd2 {[%emt 0:00:30]} Bxe2 {[%emt 0:00:30]} 26. Re1 {[%emt 0:00:30]} (26. Rc1 $5 {[%cal Rc1c5]} Be7 27. Bf1 $16) 26... Bd3 {[%emt 0:00:30][%cal Ob4b3]} 27. Bf1 $36 {[%emt 0:00:30][%mdl 2048] White has some pressure.} (27. Rc1 $5 {[%cal Rc1c5]} Ba7 28. Bf1 $14) 27... Rd8 {[%emt 0:00:30]} (27... Bc2 $14) 28. Nb3 $16 {[%emt 0:00:30]} Bxf1 {[%emt 0:00:30]} 29. Kxf1 {[%emt 0:00:30]} Bf8 {[%emt 0:00:30]} 30. Rxa6 {[%emt 0:00:30]} Rd3 {[%emt 0:00:30]} 31. Re3 {[%emt 0:00:30]} ({White should try} 31. Na5 $16) 31... Rd1+ {[%emt 0:00:30]} (31... Rxe3 $14 32. fxe3 Ng4) 32. Kg2 {[%emt 0:00:30]} Nd5 {[%emt 0:00:30]} 33. Re2 {[%emt 0:00:30]} g5 {[%emt 0:00:30]} 34. Rd2 {[%emt 0:00:30]} Re1 {[%emt 0:00:30]} 35. Ra1 {[%emt 0:00:30]} Re4 {[%emt 0:00:30]} 36. Rc1 {[%emt 0:00:30]} h6 {[%emt 0:00:30]} 37. Kf1 {[%emt 0:00:30]} Bg7 {[%emt 0:00:30]} 38. Rcc2 {[%emt 0:00:30]} g4 {[%emt 0:00:30]} (38... Re5 $16 39. Nc5 Rf5) 39. Re2 $18 {[%emt 0:00:30]} Rxe2 {[%emt 0:00:30]} 40. Rxe2 {[%emt 0:00:30][%mdl 4096] Endgame KRN-KBN} h5 {[%emt 0:00:30]} 41. Nc5 {[%emt 0:00:30]} Kf8 {[%emt 0:00:30]} 42. b3 {[%emt 0:00:30]} Bd4 {[%emt 0:00:30]} 43. Nd3 {[%emt 0:00:30]} Ke7 {[%emt 0:00:30]} 44. Re4 {[%emt 0:00:30]} Bc3 {[%emt 0:00:30]} 45. Nf4 {[%emt 0:00:30]} Nf6 {[%emt 0:00:30]} (45... Nxf4 $16 46. Rxf4 (46. gxf4 Kf6 $16) 46... f5) 46. Rc4 {[%emt 0:00:30]} e5 {[%emt 0:00:30] [#]} 47. Ne2 {[%emt 0:00:30]} Bd2 {[%emt 0:00:30] [#]} 48. Nc1 $1 {[%emt 0:00:30]} Bxc1 {[%emt 0:00:30]} 49. Rxc1 {[%emt 0:00:30] KR-KN} Ne4 {[%emt 0:00:30]} (49... Nd5 {was called for.} 50. Ke2 e4) 50. Ke2 {[%emt 0:00:30]} Nd6 {[%emt 0:00:30]} 51. Kd3 {[%emt 0:00:30]} f5 {[%emt 0:00:30]} 52. Ra1 {[%emt 0:00:30]} Ne4 {[%emt 0:00:30]} 53. Ra2 {[%emt 0:00:30] And now Kc4 would win.} Ng5 $2 {[%emt 0:00:30]} (53... Kd6 {might work better.} 54. Kc4 f4 55. Ra6+ Ke7) 54. Kc4 {[%emt 0:00:30]} Nf3 {[%emt 0:00:30]} 55. Kxb4 {[%emt 0:00:30]} Nxh2 {[%emt 0:00:30]} 56. Kc5 {[%emt 0:00:30] Black must now prevent b4.} f4 {[%emt 0:00:30]} 57. b4 {[%emt 0:00:30][%cal Bb3b4,Bb4b5,Bb5b6,Bb6b7][%mdl 32] White wants to mate with b5.} e4 {[%emt 0:00:30]} 58. gxf4 {[%emt 0:00:30] White mates.} e3 {[%emt 0:00:30]} 59. b5 {[%emt 0:00:30]} exf2 {[%emt 0:00:30]} 60. Rxf2 {[%emt 0:00:30]} g3 {[%emt 0:00:30]} 61. Re2+ {[%emt 0:00:30]} Kd7 {[%emt 0:00:30]} 62. b6 {[%emt 0:00:30]} Nf3 {[%emt 0:00:30]} 63. b7 {[%emt 0:00:30]} Kc7 {[%emt 0:00:30]} 64. Re7+ {[%emt 0:00:30]} Kb8 {[%emt 0:00:30]} 65. Kb6 {[%emt 0:00:30] Weighted Error Value: White=0.05 (flawless) /Black=0.29 (precise)} 1-0

[Event "3rd Sharjah Challengers 2023"]
[Site "Sharjah"]
[Date "2023.05.22"]
[Round "6.5"]
[White "Begmuratov, Khumoyun"]
[Black "Vandenbussche, Thibaut"]
[Result "1-0"]
[ECO "C41"]
[WhiteElo "2387"]
[BlackElo "2437"]
[Annotator "TA"]
[PlyCount "51"]
[EventDate "2023.05.16"]
[EventType "swiss"]
[EventCountry "UAE"]
[SourceTitle "playchess.com"]
[Source "ChessBase"]
[SourceQuality "1"]
[TimeControl "5400+30"]

{[%evp 12,51,28,38,31,39,30,2,30,0,12,2,43,63,49,44,49,50,60,60,70,7,40,21,30,32,252,245,227,226,393,381,380,406,403,388,400,407,391,370,620,617]} 1. e4 {[%emt 0:00:28]} d6 {[%emt 0:00:05]} 2. d4 {[%emt 0:01:45]} Nf6 {[%emt 0:00:03]} 3. Nc3 {[%emt 0:00:44]} e5 {[%emt 0:00:06]} 4. Nf3 {[%emt 0:01:10]} Nbd7 {[%emt 0:00:07]} 5. Bc4 {[%emt 0:01:17]} Be7 {[%emt 0:00:04]} 6. O-O {[%emt 0:03:06]} O-O {[%emt 0:00:04]} 7. a4 {[%emt 0:00:42]} exd4 {[%emt 0:01:28] C41: Philidor Defence.} 8. Qxd4 {[%emt 0:02:35]} Nc5 {[%emt 0:00:50]} 9. Re1 {[%emt 0:22:33]} Bg4 {[%emt 0:03:09] [#] The position is equal.} 10. Nd2 $146 {[%emt 0:03:06]} ({Predecessor:} 10. Qe3 Ncd7 11. Nd4 Ne5 12. Ba2 c5 13. Nde2 Be6 14. Bxe6 fxe6 15. Nf4 Qd7 16. Qh3 {1-0 Radulski,J (2556)-Rehn,R (2237) Politiken Cup 33rd 2011 (3)}) 10... Be6 {[%emt 0:06:35]} 11. b4 {[%emt 0:19:23]} Ncd7 {[%emt 0:05:35][%cal Bc5d7,Bd7b6,Bb6d5][%mdl 32]} 12. Bxe6 {[%emt 0:18:03]} fxe6 {[%emt 0:00:06]} 13. Qc4 $36 {[%emt 0:04:22][%mdl 2048] White is pushing.} d5 {[%emt 0:00:34]} 14. exd5 {[%emt 0:00:05]} Nb6 {[%emt 0:00:12][%csl LRc4,LRd5]} 15. Qb3 {[%emt 0:00:52]} (15. Qe2 Bxb4 16. dxe6 (16. Qxe6+ Kh8 $11) 16... Qd4 $11) 15... Nfxd5 {[%emt 0:14:12]} 16. Nxd5 {[%emt 0:05:43]} (16. a5 $14 Bf6 17. Bb2 (17. Rxe6 Bxc3 18. Rb1 Qd7 $17) 17... Nxc3 {[%mdl 64] Remove Defender} 18. Bxc3 Bxc3 19. Qxc3) 16... Nxd5 {[%emt 0:00:01]} (16... Qxd5 {with more complications.} 17. b5 Bc5 18. Ne4 Bd4) 17. Nf3 {[%emt 0:03:19]} Bxb4 {[%emt 0:10:48]} 18. Rxe6 {[%emt 0:01:11] Threatens to win with c4.} Bc3 $2 {[%emt 0:00:19] Black cannot hold the game after this.} (18... a5 $14) 19. Bg5 $1 $18 {[%emt 0:01:56]} Qd7 {[%emt 0:20:30]} 20. Re7 {[%emt 0:00:08]} Qc6 {[%emt 0:00:41]} (20... Qf5 {was worth a try.} 21. Rd1 c6 22. Rxd5 {[%mdl 64] Remove Defender} (22. Rxb7 Bf6 $18) 22... Qxd5) 21. Rd1 {[%emt 0:03:23]} Rf5 {[%emt 0:01:23] [#]} 22. Re3 $1 {[%emt 0:01:52][%cal Be7e3,Be3d3,Bd3c3][%mdl 32]} h6 {[%emt 0:04:43]} 23. Red3 $1 {[%emt 0:01:25]} Qb6 {[%emt 0:19:28]} 24. Rxc3 {[%emt 0:00:58] Strongly threatening g4.} ({Not} 24. Rxd5 Qxb3 25. cxb3 Rxd5 26. Rxd5 hxg5 $16) 24... hxg5 {[%emt 0:11:27] [#]} 25. g4 $1 {[%emt 0:00:09][%cal Bg2g4,Bg4f5][%mdl 32]} (25. Rxd5 $2 {loses.} Qxb3 26. cxb3 Rxd5 $19) 25... Kh8 $2 {[%emt 0:00:00]} (25... Qxb3 26. Rxb3 Rxf3) 26. gxf5 {[%emt 0:00:36] Weighted Error Value: White=0.10 (very precise) /Black=0.49} 1-0